fUST/lending_fUST_20250425
["ID","MTS","AMOUNT","RATE_DAILY","PERIOD"]
[358936408,1745560233544,-500.0,0.00016438,2]
[358936409,1745560233556,-500.0,0.00016438,2]
[358936410,1745560233568,-1147.26,0.00016438,2]
[358936411,1745560233579,-500.0,0.00016438,2]
[358936412,1745560233592,-916.93,0.00016438,2]
[358936413,1745560233603,-500.0,0.00016438,2]
[358936414,1745560233615,-501.99004924,0.00016438,2]
[358936415,1745560233627,-2417.21,0.00016438,2]
[358936416,1745560233639,-500.0,0.00016438,2]
[358936417,1745560233651,-2429.55,0.00016438,2]
[358936418,1745560233663,-500.0,0.00016438,2]
[358936419,1745560233675,-572.93,0.00016438,2]
[358936420,1745560233686,-500.0,0.00016438,2]
[358936421,1745560233698,-500.0,0.00016438,2]
[358936422,1745560233709,-500.0,0.00016438,2]
[358936423,1745560233721,-500.0,0.00016438,2]
[358936424,1745560233735,-500.0,0.00016438,2]
[358936425,1745560233748,-500.0,0.00016438,2]
[358936426,1745560233760,-500.0,0.00016438,2]
[358936427,1745560233772,-505.43295764,0.00016438,2]
[358936428,1745560233784,-500.0,0.00016438,2]
[358936429,1745560233796,-504.64355358,0.00016438,2]
[358936430,1745560233808,-500.0,0.00016438,2]
[358936431,1745560233820,-500.0,0.00016438,2]
[358936432,1745560233831,-501.20705146,0.00016438,2]
[358936433,1745560233843,-508.56406754,0.00016438,2]
[358936434,1745560233855,-500.0,0.00016438,2]
[358936435,1745560233864,-504.46882542,0.00016438,2]
[358936436,1745560233874,-500.0,0.00016438,2]
[358936437,1745560233885,-500.0,0.00016438,2]
[358936438,1745560233897,-507.76377528,0.00016438,2]
[358936439,1745560233906,-1301.04,0.00016438,2]
[358936440,1745560233916,-504.63162492,0.00016438,2]
[358936441,1745560233927,-500.0,0.00016438,2]
[358936442,1745560233936,-500.0,0.00016438,2]
[358936443,1745560233946,-500.0,0.00016438,2]
[358936444,1745560233956,-788.95,0.00016438,2]
[358936445,1745560234213,-500.0,0.00016438,2]
[358936446,1745560234238,-500.0,0.00016438,2]
[358936447,1745560234250,-500.0,0.00016438,2]
[358936448,1745560234260,-971.94,0.00016438,2]
[358936449,1745560234269,-894.3,0.00016438,2]
[358936450,1745560234279,-500.0,0.00016438,2]
[358936451,1745560234289,-500.0,0.00016438,2]
[358936452,1745560234299,-655.19,0.00016438,2]
[358936453,1745560234309,-1203.26,0.00016438,2]
[358936454,1745560234319,-836.46,0.00016438,2]
[358936455,1745560234329,-500.0,0.00016438,2]
[358936456,1745560234339,-500.0,0.00016438,2]
[358936457,1745560234349,-500.0,0.00016438,2]
[358936458,1745560234358,-500.0,0.00016438,2]
[358936459,1745560234368,-500.0,0.00016438,2]
[358936460,1745560234378,-1092.59,0.00016438,2]
[358936461,1745560234387,-500.0,0.00016438,2]
[358936462,1745560234397,-500.0,0.00016438,2]
[358936463,1745560234407,-500.0,0.00016438,2]
[358936464,1745560234416,-500.0,0.00016438,2]
[358936465,1745560234426,-500.0,0.00016438,2]
[358936466,1745560234436,-507.16794476,0.00016438,2]
[358936467,1745560234446,-2440.08,0.00016438,2]
[358936468,1745560234456,-500.0,0.00016438,2]
[358936469,1745560234465,-572.87,0.00016438,2]
[358936470,1745560234475,-1188.56,0.00016438,2]
[358936471,1745560234484,-500.0,0.00016438,2]
[358936472,1745560234494,-885.17,0.00016438,2]
[358936473,1745560234503,-500.0,0.00016438,2]
[358936474,1745560234514,-500.0,0.00016438,2]
[358936475,1745560234524,-500.0,0.00016438,2]
[358936476,1745560234533,-1105.23,0.00016438,2]
[358936477,1745560234543,-500.0,0.00016438,2]
[358936478,1745560234555,-500.0,0.00016438,2]
[358936479,1745560234564,-964.98,0.00016438,2]
[358936480,1745560234573,-500.0,0.00016438,2]
[358936481,1745560234582,-500.0,0.00016438,2]
[358936482,1745560234592,-500.0,0.00016438,2]
[358936483,1745560234602,-500.0,0.00016438,2]
[358936484,1745560234612,-500.0,0.00016438,2]
[358936485,1745560234622,-500.0,0.00016438,2]
[358936486,1745560234634,-500.0,0.00016438,2]
[358936487,1745560234644,-500.0,0.00016438,2]
[358936488,1745560234653,-943.0,0.00016438,2]
[358936489,1745560234662,-500.0,0.00016438,2]
[358936490,1745560234672,-500.0,0.00016438,2]
[358936491,1745560234683,-539.84,0.00016438,2]
[358936492,1745560234693,-931.88,0.00016438,2]
[358936493,1745560234703,-500.0,0.00016438,2]
[358936494,1745560234712,-500.0,0.00016438,2]
[358936495,1745560234722,-500.0,0.00016438,2]
[358936496,1745560234732,-508.25574734,0.00016438,2]
[358936497,1745560234741,-500.0,0.00016438,2]
[358936498,1745560234750,-500.0,0.00016438,2]
[358936499,1745560234759,-3189.3,0.00016438,2]
[358936500,1745560234769,-505.8449394,0.00016438,2]
[358936501,1745560234778,-500.0,0.00016438,2]
[358936502,1745560234787,-2762.09,0.00016438,2]
[358936503,1745560234796,-503.2137787,0.00016438,2]
[358936504,1745560234805,-500.0,0.00016438,2]
[358936505,1745560234815,-567.04,0.00016438,2]
[358936506,1745560234825,-506.64747856,0.00016438,2]
[358936507,1745560234834,-505.5884135,0.00016438,2]
[358936508,1745560234844,-500.0,0.00016438,2]
[358936509,1745560234853,-501.85466649,0.00016438,2]
[358936510,1745560234862,-500.0,0.00016473,2]
[358936511,1745560234872,-500.0,0.00016473,2]
[358936512,1745560234883,-500.63065621,0.00016473,2]
[358936513,1745560234897,-500.0,0.00016473,2]
[358936514,1745560234907,-500.0,0.00016473,2]
[358936515,1745560234917,-500.0,0.00016473,2]
[358936516,1745560234926,-641.01410073,0.00016473,2]
[358936517,1745560234937,-500.0,0.00016473,2]
[358936518,1745560234947,-500.0,0.00016473,2]
[358936519,1745560234956,-501.19303179,0.00016473,2]
[358936520,1745560234966,-420.89076481,0.00016473,2]
[358936521,1745560234976,-501.68700575,0.00016473,2]
[358936522,1745560234986,-500.0,0.00016473,2]
[358936523,1745560234996,-500.0,0.00016473,2]
[358936524,1745560235005,-497.40914964,0.00016473,2]
[358936547,1745560238719,-509.20536635,0.00016438,2]
[358936548,1745560238729,-1148.76,0.00016438,2]
[358936549,1745560238739,-503.15894807,0.00016438,2]
[358936550,1745560238749,-2.59085036,0.00016473,2]
[358936551,1745560238759,-477.36268588,0.00016473,2]
[358936552,1745560238768,-501.06835788,0.00016473,2]
[358936553,1745560238778,-503.48694535,0.00016473,2]
[358936554,1745560238787,-500.0,0.00016473,2]
[358936555,1745560238798,-211.31123705,0.00016473,2]
[358936556,1745560238808,-500.84468112,0.00016473,2]
[358936557,1745560238817,-500.0,0.00016473,2]
[358936558,1745560238827,-500.0,0.00016473,2]
[358936559,1745560238837,-545.41765676,0.00016473,2]
[358936560,1745560238847,-500.02291501,0.00016473,2]
[358936561,1745560238856,-176.44354541,0.00016473,2]
[358936562,1745560238871,-164.57967691,0.00016473,2]
[358936563,1745560238880,-500.0,0.00016473,2]
[358936564,1745560238894,-504.61599494,0.00016473,2]
[358936565,1745560238903,-500.0,0.00016473,2]
[358936566,1745560238912,-500.0,0.00016473,2]
[358936567,1745560238922,-444.1970495,0.00016473,2]
[358936568,1745560238933,-501.77221027,0.00016473,2]
[358936569,1745560238943,-500.0,0.00016473,2]
[358936570,1745560238952,-501.72240751,0.00016473,2]
[358936571,1745560238962,-500.0,0.00016473,2]
[358936572,1745560238972,-501.29369041,0.00016473,2]
[358936573,1745560238981,-502.70159432,0.00016473,2]
[358936574,1745560238991,-500.0,0.00016473,2]
[358936575,1745560239000,-151.0,0.00016473,2]
[358936576,1745560239010,-151.0,0.00016473,2]
[358936577,1745560239019,-151.0,0.00016473,2]
[358936578,1745560239029,-151.0,0.00016473,2]
[358936579,1745560239038,-151.0,0.00016473,2]
[358936580,1745560239048,-151.0,0.00016473,2]
[358936581,1745560239058,-151.0,0.00016473,2]
[358936582,1745560239068,-2198.02368873,0.00016612,2]
[358936583,1745560239078,-160.0,0.00016679,2]
[358936584,1745560239087,-160.0,0.00016679,2]
[358936585,1745560239097,-160.0,0.00016679,2]
[358936586,1745560239106,-69.83282417,0.00016679,2]
[358936587,1745560239119,-770.37768937,0.00016679,2]
[358936588,1745560239128,-160.0,0.00016679,2]
[358936589,1745560239138,-235.44661387,0.00016697,2]
[358936590,1745560239147,-420.98395174,0.00016697,2]
[358936591,1745560239158,-151.0,0.00016712,2]
[358936592,1745560239167,-1841.41,0.00016712,2]
[358936593,1745560239176,-500.0,0.00016712,2]
[358936594,1745560239186,-141.77886753,0.00016712,2]
[358936600,1745560240586,-358.22113247,0.00016712,2]
[358936601,1745560240597,-1127.76,0.00016712,2]
[358936602,1745560240607,-500.0,0.00016712,2]
[358936603,1745560240617,-500.0,0.00016712,2]
[358936604,1745560240626,-151.0,0.00016712,2]
[358936605,1745560240636,-500.0,0.00016712,2]
[358936606,1745560240647,-500.0,0.00016712,2]
[358936607,1745560240656,-500.0,0.00016712,2]
[358936608,1745560240666,-968.71,0.00016712,2]
[358936609,1745560240676,-151.0,0.00016712,2]
[358936610,1745560240686,-509.61399133,0.00016712,2]
[358936611,1745560240696,-898.37,0.00016712,2]
[358936612,1745560240706,-500.0,0.00016712,2]
[358936613,1745560240716,-1031.45,0.00016712,2]
[358936614,1745560240725,-838.59,0.00016712,2]
[358936615,1745560240735,-933.51,0.00016712,2]
[358936616,1745560240745,-280.4170494,0.00016712,2]
[358936617,1745560240756,-928.32,0.00016712,2]
[358936618,1745560240768,-151.0,0.00016712,2]
[358936619,1745560240778,-151.0,0.00016712,2]
[358936620,1745560240789,-965.64,0.00016712,2]
[358936621,1745560240799,-151.0,0.00016712,2]
[358936622,1745560240810,-151.0,0.00016712,2]
[358936623,1745560240820,-151.0,0.00016712,2]
[358936624,1745560240831,-151.0,0.00016712,2]
[358936625,1745560240841,-151.0,0.00016712,2]
[358936626,1745560240851,-151.0,0.00016712,2]
[358936627,1745560240861,-151.0,0.00016712,2]
[358936628,1745560240871,-1059.46,0.00016712,2]
[358936629,1745560240882,-151.0,0.00016712,2]
[358936630,1745560240895,-500.0,0.00016712,2]
[358936631,1745560240905,-500.0,0.00016712,2]
[358936632,1745560240915,-736.3,0.00016712,2]
[358936633,1745560240925,-1136.21,0.00016712,2]
[358936634,1745560240935,-500.0,0.00016712,2]
[358936635,1745560240945,-151.0,0.00016712,2]
[358936636,1745560240957,-151.0,0.00016712,2]
[358936637,1745560240969,-151.0,0.00016712,2]
[358936638,1745560240979,-161.053525,0.00016712,2]
[358936639,1745560240992,-500.0,0.00016712,2]
[358936640,1745560241002,-500.0,0.00016712,2]
[358936641,1745560241012,-500.0,0.00016712,2]
[358936642,1745560241021,-500.0,0.00016712,2]
[358936643,1745560241031,-500.0,0.00016712,2]
[358936644,1745560241041,-500.0,0.00016712,2]
[358936645,1745560241051,-500.0,0.00016712,2]
[358936646,1745560241060,-151.0,0.00016712,2]
[358936647,1745560241071,-500.0,0.00016712,2]
[358936648,1745560241084,-152.768461,0.00016712,2]
[358936649,1745560241093,-152.768461,0.00016712,2]
[358936650,1745560241103,-152.768461,0.00016712,2]
[358936651,1745560241113,-500.0,0.00016712,2]
[358936652,1745560241122,-152.768461,0.00016712,2]
[358936653,1745560241132,-500.0,0.00016712,2]
[358936654,1745560241143,-500.0,0.00016712,2]
[358936655,1745560241152,-1298.42,0.00016712,2]
[358936656,1745560241163,-578.33,0.00016712,2]
[358936657,1745560241173,-500.0,0.00016712,2]
[358936658,1745560241184,-620.39,0.00016712,2]
[358936659,1745560241194,-819.73,0.00016712,2]
[358936660,1745560241204,-500.0,0.00016712,2]
[358936661,1745560241214,-500.0,0.00016712,2]
[358936662,1745560241224,-230.76732908,0.00016712,2]
[358936663,1745560241234,-500.0,0.00016712,2]
[358936664,1745560241244,-1147.26,0.00016712,2]
[358936665,1745560241254,-151.0,0.00016712,2]
[358936666,1745560241264,-568.44,0.00016712,2]
[358936667,1745560241274,-916.93,0.00016712,2]
[358936668,1745560241285,-262.186843,0.00016712,2]
[358936669,1745560241294,-500.0,0.00016712,2]
[358936670,1745560241305,-151.0,0.00016712,2]
[358936671,1745560241315,-151.0,0.00016712,2]
[358936672,1745560241325,-2417.21,0.00016712,2]
[358936673,1745560241335,-500.0,0.00016712,2]
[358936674,1745560241345,-2429.55,0.00016712,2]
[358936675,1745560241355,-500.0,0.00016712,2]
[358936676,1745560241366,-572.93,0.00016712,2]
[358936677,1745560241375,-500.0,0.00016712,2]
[358936678,1745560241385,-500.0,0.00016712,2]
[358936679,1745560241395,-500.0,0.00016712,2]
[358936680,1745560241405,-500.0,0.00016712,2]
[358936681,1745560241416,-500.0,0.00016712,2]
[358936682,1745560241425,-500.0,0.00016712,2]
[358936683,1745560241435,-500.0,0.00016712,2]
[358936684,1745560241444,-500.0,0.00016712,2]
[358936685,1745560241454,-500.0,0.00016712,2]
[358936686,1745560241464,-500.0,0.00016712,2]
[358936687,1745560241473,-500.0,0.00016712,2]
[358936688,1745560241483,-500.0,0.00016712,2]
[358936689,1745560241493,-1301.04,0.00016712,2]
[358936690,1745560241502,-500.0,0.00016712,2]
[358936691,1745560241725,-500.0,0.00016712,2]
[358936692,1745560241740,-500.0,0.00016712,2]
[358936693,1745560241751,-788.95,0.00016712,2]
[358936694,1745560241761,-500.0,0.00016712,2]
[358936695,1745560241772,-500.0,0.00016712,2]
[358936696,1745560241782,-500.0,0.00016712,2]
[358936697,1745560241791,-971.94,0.00016712,2]
[358936698,1745560241802,-894.3,0.00016712,2]
[358936699,1745560241811,-500.0,0.00016712,2]
[358936700,1745560241821,-500.0,0.00016712,2]
[358936701,1745560241831,-655.19,0.00016712,2]
[358936702,1745560241841,-1203.26,0.00016712,2]
[358936703,1745560241850,-500.0,0.00016712,2]
[358936704,1745560241860,-836.46,0.00016712,2]
[358936705,1745560241870,-500.0,0.00016712,2]
[358936706,1745560241879,-500.0,0.00016712,2]
[358936707,1745560241892,-500.0,0.00016712,2]
[358936708,1745560241901,-1092.59,0.00016712,2]
[358936709,1745560241911,-500.0,0.00016712,2]
[358936710,1745560241921,-500.0,0.00016712,2]
[358936711,1745560241931,-500.0,0.00016712,2]
[358936712,1745560241940,-500.0,0.00016712,2]
[358936713,1745560241951,-156.860021,0.00016712,2]
[358936714,1745560241962,-2440.08,0.00016712,2]
[358936715,1745560241971,-500.0,0.00016712,2]
[358936716,1745560241981,-572.87,0.00016712,2]
[358936717,1745560241990,-1188.56,0.00016712,2]
[358936718,1745560242000,-151.0,0.00016712,2]
[358936719,1745560242009,-151.0,0.00016712,2]
[358936720,1745560242018,-500.0,0.00016712,2]
[358936721,1745560242028,-885.17,0.00016712,2]
[358936722,1745560242038,-500.0,0.00016712,2]
[358936723,1745560242048,-500.0,0.00016712,2]
[358936724,1745560242058,-1105.23,0.00016712,2]
[358936725,1745560242068,-500.0,0.00016712,2]
[358936726,1745560242077,-964.98,0.00016712,2]
[358936727,1745560242087,-500.0,0.00016712,2]
[358936728,1745560242096,-500.0,0.00016712,2]
[358936729,1745560242106,-500.0,0.00016712,2]
[358936730,1745560242116,-500.0,0.00016712,2]
[358936731,1745560242126,-500.0,0.00016712,2]
[358936732,1745560242136,-151.0,0.00016712,2]
[358936733,1745560242146,-151.0,0.00016712,2]
[358936734,1745560242156,-500.0,0.00016712,2]
[358936735,1745560242166,-943.0,0.00016712,2]
[358936736,1745560242176,-151.0,0.00016712,2]
[358936737,1745560242185,-500.0,0.00016712,2]
[358936738,1745560242195,-500.0,0.00016712,2]
[358936739,1745560242204,-539.84,0.00016712,2]
[358936740,1745560242214,-931.88,0.00016712,2]
[358936741,1745560242224,-500.0,0.00016712,2]
[358936742,1745560242234,-500.0,0.00016712,2]
[358936743,1745560242243,-151.0,0.00016712,2]
[358936744,1745560242253,-151.0,0.00016712,2]
[358936745,1745560242263,-500.0,0.00016712,2]
[358936746,1745560242272,-151.0,0.00016712,2]
[358936747,1745560242282,-151.0,0.00016712,2]
[358936748,1745560242297,-151.0,0.00016712,2]
[358936749,1745560242306,-500.0,0.00016712,2]
[358936750,1745560242316,-3189.3,0.00016712,2]
[358936751,1745560242326,-2762.09,0.00016712,2]
[358936752,1745560242336,-567.04,0.00016712,2]
[358936753,1745560242346,-500.0,0.00016712,2]
[358936754,1745560242356,-1148.76,0.00016712,2]
[358936755,1745560242366,-151.0,0.00016749,2]
[358936756,1745560242376,-2198.02368873,0.00016749,2]
[358936757,1745560242386,-152.0,0.00016773,2]
[358936758,1745560242397,-317.96099324,0.00016871,2]
[358936759,1745560242407,-501.17337227,0.00016873,2]
[358936760,1745560242416,-500.0,0.00016873,2]
[358936761,1745560242426,-500.0,0.00016873,2]
[358936762,1745560242436,-506.1163904,0.00016873,2]
[358936763,1745560242445,-503.20617439,0.00016873,2]
[358936764,1745560242455,-296.71513767,0.00016873,2]
[358936765,1745560242465,-500.0,0.00016873,2]
[358936766,1745560242475,-583.070604,0.00016873,2]
[358936767,1745560242484,-500.0,0.00016873,2]
[358936768,1745560242494,-500.0,0.00016873,2]
[358936769,1745560242504,-502.37498209,0.00016873,2]
[358936770,1745560242513,-151.0,0.00016873,2]
[358936771,1745560242523,-1000.0,0.00016884,2]
[358936772,1745560242533,-151.0,0.00016886,2]
[358936773,1745560242543,-151.0,0.00016886,2]
[358936774,1745560242553,-151.0,0.00016886,2]
[358936775,1745560242563,-156.993649,0.00016886,2]
[358936776,1745560242572,-151.0,0.00016886,2]
[358936777,1745560242582,-151.0,0.00016886,2]
[358936778,1745560242592,-151.0,0.00016886,2]
[358936779,1745560242601,-151.0,0.00016886,2]
[358936780,1745560242611,-152.768461,0.00016886,2]
[358936781,1745560242620,-152.768461,0.00016886,2]
[358936782,1745560242631,-151.0,0.00016886,2]
[358936783,1745560242641,-2198.02368873,0.00016886,2]
[358936784,1745560242651,-151.0,0.00016886,2]
[358936785,1745560242660,-17753.74879176,0.00016886,2]
[358936793,1745560246354,-524.94,0.00016438,2]
[358936794,1745560246364,-500.0,0.00016438,2]
[358936795,1745560246374,-524.94,0.00016712,2]
[358936796,1745560246383,-1662.00646088,0.00016886,2]
[358936797,1745560246678,-363.55111133,0.00016886,2]
[358936801,1745560326513,-500.0,0.00015003,2]
[358936802,1745560328648,-500.0,0.00015002,2]
[358936803,1745560330864,-500.0,0.00015002,2]
[358936804,1745560335432,-372.21239974,0.00015002,2]
[358936805,1745560335457,-127.78760026,0.00015002,2]
[358936806,1745560341496,-372.21239974,0.00015002,2]
[358936807,1745560383137,-300.0,0.00015001,2]
[358936808,1745560386165,-500.0,0.00015002,2]
[358936810,1745560401413,-308.29760367,0.00015001,2]
[358936811,1745560410830,-500.0,0.00015001,2]
[358936812,1745560410863,-500.0,0.00015001,2]
[358936813,1745560410890,-500.0,0.00015001,2]
[358936814,1745560410934,-500.0,0.00015001,2]
[358936815,1745560410965,-500.0,0.00015001,2]
[358936816,1745560410990,-78.2599904,0.00015001,2]
[358936817,1745560428000,-328.93340573,0.00015001,2]
[358936821,1745560442302,300.0,0.00015,2]
[358936822,1745560502360,847.0,0.00015,2]
[358936823,1745560503321,300.0,0.00015,2]
[358936824,1745560511208,227.0,0.00015,2]
[358936826,1745560559455,-92.80660387,0.00015001,2]
[358936827,1745560559490,-65.22981354,0.00015001,2]
[358936831,1745560563033,300.0,0.00015,2]
[358936832,1745560624075,-291.2898667,0.00015,2]
[358936834,1745560638611,500.0,0.00015,2]
[358936835,1745560638673,500.0,0.00015,2]
[358936836,1745560638708,500.0,0.00015,2]
[358936837,1745560638750,500.0,0.00015,2]
[358936838,1745560638782,168.08826279,0.00015,2]
[358936839,1745560651852,514.04582601,0.00015,2]
[358936840,1745560657563,500.0,0.00015,2]
[358936841,1745560657612,500.0,0.00015,2]
[358936842,1745560657663,500.0,0.00015,2]
[358936843,1745560657724,500.0,0.00015,2]
[358936844,1745560657800,213.84047379,0.00015,2]
[358936845,1745560657834,343.20289641,0.00015,2]
[358936846,1745560657872,156.79710359,0.00015,2]
[358936847,1745560657904,202.89139533,0.00015,2]
[358936848,1745560657938,140.31150108,0.00015,2]
[358936849,1745560657984,157.7702144,0.00015,2]
[358936850,1745560658241,342.2297856,0.00015,2]
[358936851,1745560658282,500.0,0.00015,2]
[358936852,1745560658345,4.7702144,0.00015,2]
[358936853,1745560658742,-495.2297856,0.00015,2]
[358936854,1745560658775,-4.7702144,0.00015,2]
[358936862,1745560810396,170.60694021,0.00014995,2]
[358936863,1745560810425,266.18234879,0.00014995,2]
[358936864,1745560889488,738.87,0.00015,2]
[358936898,1745561193089,180.4709491,0.00014948,2]
[358936899,1745561230463,5049.0161715,0.00014966,2]
[358936900,1745561232115,-300.0,0.00015113,2]
[358936901,1745561232139,-240.89869587,0.00015114,2]
[358936902,1745561232172,-500.0,0.00015114,2]
[358936903,1745561232193,-613.98957718,0.00015114,2]
[358936904,1745561232227,-500.0,0.00015114,2]
[358936905,1745561232260,-500.0,0.00015114,2]
[358936906,1745561232290,-500.0,0.00015114,2]
[358936907,1745561232322,-451.41114406,0.00015114,2]
[358936908,1745561232343,-273.91425241,0.00015118,2]
[358936909,1745561232364,-36.75926022,0.00015118,2]
[358936913,1745561349112,-508.31541155,0.00015014,2]
[358936914,1745561349136,-243.0,0.00015014,2]
[358936915,1745561349158,-1000.0,0.00015015,2]
[358936916,1745561349182,-274.0,0.00015117,2]
[358936917,1745561349204,-2541.50073018,0.00015118,2]
[358936918,1745561349226,-500.0,0.00015118,2]
[358936919,1745561349247,-500.0,0.00015118,2]
[358936920,1745561349270,-500.0,0.00015118,2]
[358936921,1745561349292,-500.0,0.00015118,2]
[358936922,1745561349316,-500.0,0.00015118,2]
[358936923,1745561349341,-280.27397108,0.00015118,2]
[358936924,1745561349366,-500.0,0.00015406,2]
[358936925,1745561349395,-288.45719642,0.00015406,2]
[358936926,1745561349418,-203.90290669,0.00015406,2]
[358936927,1745561349441,-500.0,0.00015406,2]
[358936928,1745561349467,-352.86205886,0.00015406,2]
[358936929,1745561349489,-205.00337684,0.00015406,2]
[358936930,1745561349512,-19525.72311412,0.00015407,2]
[358936939,1745561374164,-1356.6962605,0.00015245,2]
[358936940,1745561374188,-613.55078348,0.00015407,2]
[358936941,1745561374210,-44.66895534,0.00016164,2]
[358936971,1745561432395,-381.92818453,0.00015018,2]
[358936973,1745561432405,-151.0,0.000154,2]
[358936975,1745561432417,-151.52134954,0.000154,3]
[358936977,1745561432427,-269.11219971,0.00016164,2]
[358936979,1745561432437,-272.68794806,0.00016435,2]
[358936981,1745561432447,-278.23686872,0.00016438,2]
[358936982,1745561432461,-237.51666112,0.00016438,2]
[358936983,1745561432470,-500.0,0.00016438,2]
[358936984,1745561432480,-945.49,0.00016438,2]
[358936985,1745561432490,-34.20389479,0.00016438,2]
[358937025,1745561438932,-219.64680854,0.00016437,2]
[358937026,1745561438941,-500.0,0.00016437,2]
[358937027,1745561438951,-201.9200375,0.00016437,2]
[358937028,1745561438960,-581.11268899,0.00016437,2]
[358937029,1745561438970,-465.79610521,0.00016438,2]
[358937030,1745561438979,-500.0,0.00016438,2]
[358937031,1745561438989,-371.07256836,0.00016438,2]
[358937032,1745561438998,-855.72,0.00016438,2]
[358937033,1745561439008,-500.0,0.00016438,2]
[358937034,1745561439017,-9.55553528,0.00016438,2]
[358937096,1745561443479,-779.62446472,0.00016438,2]
[358937098,1745561443496,-530.13,0.00016438,2]
[358937101,1745561443512,-500.0,0.00016438,2]
[358937103,1745561443526,-500.0,0.00016438,2]
[358937106,1745561443542,-768.71,0.00016438,2]
[358937108,1745561443556,-500.0,0.00016438,2]
[358937110,1745561443567,-512.06714098,0.00016438,2]
[358937112,1745561443581,-885.17,0.00016438,2]
[358937114,1745561443595,-500.0,0.00016438,2]
[358937117,1745561443608,-850.96,0.00016438,2]
[358937119,1745561443621,-238.61515259,0.00016438,2]
[358937200,1745561914314,413.791492,0.0001447,2]
[358937205,1745562453140,-220.0,0.000153,2]
[358937206,1745562453163,-338.2683292,0.00015352,2]
[358937207,1745562453185,-180.70366703,0.00015441,2]
[358937208,1745562562147,-500.0,0.00015441,2]
[358937209,1745562562169,-256.77888229,0.00015441,2]
[358937210,1745562562198,-500.0,0.00015441,2]
[358937211,1745562562221,-250.8724676,0.00015441,2]
[358937212,1745562562244,-198.39407018,0.00015441,2]
[358937213,1745562562272,-500.0,0.00015441,2]
[358937214,1745562562314,-500.0,0.00015441,2]
[358937215,1745562562342,-500.0,0.00015441,2]
[358937216,1745562562369,-500.0,0.00015441,2]
[358937217,1745562562400,-500.0,0.00015441,2]
[358937218,1745562562428,-500.0,0.00015441,2]
[358937219,1745562562456,-500.0,0.00015441,2]
[358937220,1745562562487,-500.0,0.00015441,2]
[358937221,1745562562516,-500.0,0.00015441,2]
[358937222,1745562562545,-500.0,0.00015441,2]
[358937223,1745562562575,-500.0,0.00015441,2]
[358937224,1745562562604,-617.71265602,0.00015441,2]
[358937225,1745562562635,-500.0,0.00015441,2]
[358937226,1745562562666,-500.0,0.00015441,2]
[358937227,1745562562699,-500.0,0.00015441,2]
[358937228,1745562562730,-500.0,0.00015441,2]
[358937229,1745562562752,-16294.40671718,0.00015442,2]
[358937230,1745562562775,-362.0,0.00015443,2]
[358937231,1745562562797,-451.029,0.00015452,2]
[358937232,1745562562818,-942.2724505,0.00015452,2]
[358937233,1745562562839,-19614.572312,0.00015498,2]
[358937234,1745562563128,-744.3836279,0.00015498,2]
[358937235,1745562563150,-179.94687337,0.00016,7]